Cogmind - Beta 13 @@@ ROGUE MODE // 2024.05.27 @ 09:46:49 Player: Bace Troncons Result: Destroyed by 2K-TKG(R) with Subdweller Beam Cannon Performance ------------- Evolutions (0) 0 Regions Visited (2) 400 Robots Destroyed (25) 125 Value Destroyed (600) 600 Prototype IDs (10) 200 Alien Tech Used (0) 0 Bonus (0) 0 TOTAL SCORE: 1325 Bonus ------- None Cogmind --------- Core Integrity 0/250 Matter 248/300 Energy 200/200 System Corruption 0% Temperature Cool (9) Movement Treading (160) Location -10/Subcaves Parts ------- > --- POWER (1) -------- Subdweller Power Source > --- PROPULSION (2) --- Spiked Treads Spiked Treads > --- UTILITY (2) ------ Large Storage Unit Medium Armor Plating > --- WEAPON (2) ------- Barrage Gun Barrage Gun > --- INVENTORY (15) --- Light Treads Light Treads Light Treads Sensor Array Light Armor Plating Hacking Suite Hacking Suite Power Bank Assault Rifle Light Cannon Light Cannon Subdweller Shrapnel Launcher Ripper Peak State ------------ > --- POWER ------------ Subdweller Power Source > --- PROPULSION ------- Spiked Treads Spiked Treads > --- UTILITY ---------- Large Storage Unit Medium Armor Plating > --- WEAPON ----------- Barrage Gun Barrage Gun > --- INVENTORY -------- Light Treads Light Treads Light Treads Sensor Array Light Armor Plating Hacking Suite Hacking Suite Power Bank Assault Rifle Light Cannon Light Cannon Light Cannon Grenade Launcher Subdweller Shrapnel Launcher Ripper [Rating: 18] Favorites ----------- Power Light Ion Engine Engine Light Ion Engine Propulsion Light Treads Treads Light Treads Utility Medium Armor Plating Storage Large Storage Unit Protection Medium Armor Plating Weapon Light Assault Rifle Ballistic Gun Light Assault Rifle Ballistic Cannon Light Cannon Slashing Weapon Ripper Build | -11 -10 -10 ------- Run | Yrd Mat Sub Slots Evolved . | . . . Power . | . . . Propulsion . | . . . Utility . | . . . Weapon . | . . . Parts Attached 31 | 6 11 14 Power 3 | 1 1 1 Engine 3 | 1 1 1 Core . | . . . Reactor . | . . . Propulsion 8 | 2 2 4 Treads 8 | 2 2 4 Leg . | . . . Wheel . | . . . Hover . | . . . Flight . | . . . Utility 6 | 1 4 1 Device . | . . . Storage 3 | 1 2 . Processor . | . . . Hackware . | . . . Protection 3 | . 2 1 Artifact . | . . . Weapon 14 | 2 4 8 Energy Gun . | . . . Energy Cannon . | . . . Ballistic Gun 8 | 2 2 4 Ballistic Cannon 4 | . 2 2 Launcher . | . . . Special Weapon . | . . . Impact Weapon . | . . . Slashing Weapon 2 | . . 2 Piercing Weapon . | . . . Special Melee Weapon . | . . . Unidentified Prototypes . | . . . Parts Lost 5 | . 2 3 Power 2 | . 1 1 Propulsion 1 | . 1 . Utility 1 | . . 1 Weapon 1 | . . 1 Highest Loss Streak 3 | . 2 3 To Critical Strikes 1 | . . 1 Average Slot Usage (%) 96 | . 94 99 Engine 13 | . 14 13 Treads 28 | . 28 28 Storage 14 | . 14 14 Protection 10 | . 9 14 Ballistic Gun 16 | . 18 11 Ballistic Cannon 10 | . 9 14 Naked Turns . | . . . Heaviest Build 96 | 12 96 38 Greatest Support 40 | 40 40 40 Greatest Overweight (x) 2 | . 2 . Average Overweight (x) . | . . . Largest Inventory Capacity 25 | 8 25 15 Average Capacity 18 | 7 20 15 Most Carried 18 | 3 18 15 Average Carried 11 | 1 10 12 Final Capacity 15 | 8 15 15 Final Carried 13 | 3 11 13 Class Distribution -------------------- 92% | Mutant 7% | Derelict-Mutant Dominant Class ---------------- Mutant | -10/Materials Mutant | -10/Subcaves Resources | -11 -10 -10 ----------- Run | Yrd Mat Sub Matter Collected 1020 | 260 299 461 Remotely . | . . . Salvage Created 698 | . 428 270 Parts 49 | . 35 14 Haulers Intercepted 2 | . 2 . Recyclers Shooed 1 | . 1 . Parts Field Recycled . | . . . Retrieved Matter . | . . . Parts Self-Destructed 4 | . . 4 Prevented . | . . . Kills | -11 -10 -10 ------- Run | Yrd Mat Sub Combat Hostiles Destroyed 19 | . 11 8 Guns 12 | . 9 3 Cannons 7 | . 2 5 Classes Destroyed 7 | . 6 1 Worker 1 | . 1 . Hauler 2 | . 2 . Mechanic 1 | . 1 . Operator 2 | . 2 . Swarmer 6 | . 6 . Grunt 5 | . 5 . Subdweller 8 | . . 8 Best Kill Streak 3 | . 3 2 Combat Bots Only 3 | . 3 2 Max Kills in Single Turn 1 | . 1 1 Gunslinging . | . . . Exploded . | . . . Melee . | . . . Uniques/NPCs Destroyed . | . . . Combat | -11 -10 -10 -------- Run | Yrd Mat Sub Hostile Shots Fired 162 | . 100 62 Missed 52 | . 38 14 Damage Taken 1619 | . 539 1080 Core 253 | . 67 186 Absorbed by Shields . | . . . Core Remaining (%) 100 | 100 . . Volleys Fired 118 | . 81 37 Largest 2 | . 2 2 Hottest 70 | . 70 70 Shots Fired 236 | . 162 74 Gun 157 | . 120 37 Cannon 79 | . 42 37 Launcher . | . . . Special . | . . . Kinetic 236 | . 162 74 Thermal . | . . . Explosive . | . . . Electromagnetic . | . . . Robot Hit Streak 13 | . 13 9 Robot Miss Streak 7 | . 7 1 Penetration Max . | . . . Secondary Targets 2 | . 2 . Max Gunslinging Chain 1 | . 1 . Shots Hit Robots 152 | . 97 55 Core Hits 54 | . 37 17 Critical Kills . | . . . Critical Parts Destroyed . | . . . Critical Strikes 1 | . . 1 Blast 1 | . . 1 Melee Attacks 9 | . . 9 Impact . | . . . Slashing 9 | . . 9 Piercing . | . . . Sneak Attacks . | . . . Combat Hostiles . | . . . Follow-up Attacks . | . . . Damage Inflicted 2024 | . 1031 993 Guns 1222 | . 675 547 Cannons 754 | . 347 407 Explosions . | . . . Melee 39 | . . 39 Ramming 9 | . 9 . Kinetic 1976 | . 1022 954 Thermal . | . . . Explosive . | . . . Electromagnetic . | . . . Impact . | . . . Slashing 39 | . . 39 Piercing . | . . . Highest Corruption . | . . . Average Corruption . | . . . Corruption Purged . | . . . Corruption Blocked . | . . . Overload Shots . | . . . Overflow Damage 1 | . 1 . Projectiles 1 | . 1 . Explosions . | . . . Melee . | . . . Knockbacks 13 | . 9 4 Impact . | . . . Kinetic 12 | . 8 4 Secondary 1 | . 1 . Self-Inflicted Damage . | . . . Shots . | . . . Rammed 1 | . 1 . Targets Rammed 1 | . 1 . Kicked . | . . . Crushed . | . . . Highest Temperature 92 | . 92 . Average Temperature 17 | . 17 . Received Heat Transfer 264 | . 108 156 Siege Activations . | . . . Robots Corrupted . | . . . Combat Hostiles . | . . . Parts Fried . | . . . Impact Corruptions . | . . . Robots Melted . | . . . Combat Hostiles . | . . . Parts Melted . | . . . Heat Transferred . | . . . Parts Sabotaged . | . . . Parts Stolen . | . . . Parts Stripped . | . . . Power Chain Reactions . | . . . Alert | -11 -10 -10 ------- Run | Yrd Mat Sub Peak Influence 137 | . 137 . Initial . | . . . Average 35 | . 36 . Maximum Alert Level . | . . . Low Security (%) 100 | 100 100 . Level 1 . | . . . Level 2 . | . . . Level 3 . | . . . Level 4 . | . . . Level 5 . | . . . High Security . | . . . Max Security . | . . . Squads Dispatched 3 | . 3 . Investigation 2 | . 2 . Extermination . | . . . Reinforcement 1 | . 1 . Assault . | . . . Garrison . | . . . Intercept . | . . . Searches Triggered . | . . . Construction Impeded . | . . . Haulers Reinforced . | . . . Active Scanning Responses . | . . . Cargo Convoy Interrupts . | . . . Stealth | -11 -10 -10 --------- Run | Yrd Mat Sub Distress Signals 1 | . 1 . Communications Jammed . | . . . Distress Signals . | . . . Times Spotted 42 | . 31 11 Peak Tracking Total 3 | . 3 2 Tactical Retreats 1 | . 1 . Traps | -11 -10 -10 ------- Run | Yrd Mat Sub Traps Triggered 2 | . 2 . Indirectly . | . . . Trap Hack Attempts . | . . . Triggered . | . . . Disarmed . | . . . Reprogrammed . | . . . Reused . | . . . Traps Extracted . | . . . Installed . | . . . Triggered . | . . . Machines | -11 -10 -10 ---------- Run | Yrd Mat Sub Machines Disabled 1 | . . 1 Max in Single Turn 1 | . . 1 Machines Repaired . | . . . Machines Dismantled . | . . . Machines Sabotaged . | . . . Overloaded Fab Kills . | . . . Hacking | -11 -10 -10 --------- Run | Yrd Mat Sub Machines Accessed 5 | . 4 1 Terminals 4 | . 4 . Fabricators . | . . . Repair Stations . | . . . Recycling Units . | . . . Scanalyzers . | . . . Garrison Access . | . . . Total Hacks 10 | . 9 1 Successful 4 | . 3 1 Failed 6 | . 6 . Catastrophic 1 | . 1 . Database Lockouts . | . . . Manual 5 | . 5 . Terminals 9 | . 9 . Fabricators . | . . . Repair Stations . | . . . Recycling Units . | . . . Scanalyzers . | . . . Garrison Access . | . . . Terminal Hacks 3 | . 2 1 Transport Status 1 | . 1 . Recall Investigation 1 | . 1 . Derelict Proto ID Bank 1 | . . 1 Fabricator Hacks . | . . . Repair Station Hacks . | . . . Recycling Unit Hacks . | . . . Scanalyzer . | . . . Garrison Access Hacks . | . . . Unauthorized Hacks 1 | . 1 . Terminals 1 | . 1 . Operators 1 | . 1 . Fabricators . | . . . Repair Stations . | . . . Recycling Units . | . . . Scanalyzers . | . . . Garrison Access . | . . . Data Cores Recovered 1 | . 1 . Used . | . . . Hacking Detections 2 | . 2 . Full Trace Events 1 | . 1 . Feedback Events . | . . . Feedback Blocked . | . . . Robot Schematics Acquired . | . . . Robots Built . | . . . Authchips . | . . . Time . | . . . Total Robot Build Rating . | . . . Part Schematics Acquired . | . . . Parts Built . | . . . Authchips . | . . . Time . | . . . Total Part Build Rating . | . . . Parts Repaired . | . . . Time . | . . . Parts Recycled . | . . . Recycled Matter . | . . . Retrieved Matter . | . . . Retrieved Components . | . . . Parts Scanalyzed . | . . . Part Schematics Acquired . | . . . Parts Damaged . | . . . Bothacking | -11 -10 -10 ------------ Run | Yrd Mat Sub Used RIF Installer . | . . . Robots Hacked . | . . . Non-combat . | . . . Combat . | . . . Robot Hacks Applied . | . . . Relay Couplers Released . | . . . Fabnet Peak Effective % . | . . . Robots Rewired . | . . . Allies Hacked . | . . . Hacks Repelled . | . . . Allies | -11 -10 -10 -------- Run | Yrd Mat Sub Total Allies . | . . . Largest Group . | . . . Highest-Rated Group . | . . . Highest-Rated Ally . | . . . Total Orders . | . . . Ally Attacks . | . . . Total Damage . | . . . Kills . | . . . Allies Corrupted . | . . . Allies Melted . | . . . Intel | -11 -10 -10 ------- Run | Yrd Mat Sub Robot Analysis Total . | . . . Derelict Logs Recovered 2 | . . 2 Drone Launches . | . . . Drone Recoveries . | . . . Exploration | -11 -10 -10 ------------- Run | Yrd Mat Sub Turns Passed 3904 | 70 2575 1259 Spaces Moved 1518 | 42 808 668 Core 7 | 7 . . Treads 1511 | 35 808 668 Legs . | . . . Wheels . | . . . Hover . | . . . Flight . | . . . Fastest Speed 50 | 50 160 160 Average Speed 201 | 141 239 160 Slowest Speed 320 | 160 320 160 Overloaded Moves . | . . . Propulsion Burnouts . | . . . Robots Hopped . | . . . Cave-ins Triggered . | . . . Exploration Rate (%) 49 | 5 98 45 Regions Visited 2 Branch Regions 1 Pre-discovered Areas 1 | . . 1 Known Exits Taken . | . . . Unknown Exits Taken 2 | 1 1 . Scrap Searched 11 | . . 11 Spaces Dug . | . . . Terrain Destroyed . | . . . Melee . | . . . Projectile . | . . . AOE . | . . . Terrain Rammed . | . . . Walls Destroyed . | . . . Machines Disabled . | . . . Actions | -11 -10 -10 --------- Run | Yrd Mat Sub Total 2133 | 50 1309 774 Wait 416 | . 381 35 Move 1516 | 41 807 668 Hop . | . . . Pick Up 21 | 3 15 3 Fast Attach 13 | 6 3 4 Attach 6 | . 3 3 Detach 7 | . 3 4 Swap 12 | . 5 7 Drop 14 | . 10 4 Fire 118 | . 81 37 Melee 9 | . . 9 Ram . | . . . Kick . | . . . Crush 1 | . 1 . Escape Stasis . | . . . Rewire . | . . . Trap . | . . . Miscellaneous . | . . . Route ------- -11/Scrapyard -10/Materials (discovered 6 exits: [*Mat x3] / [*Min x2] / *Sub) -10/Subcaves History --------- Turn | Location | Event 5 | -11/Scrapyard | Discovered new exit (range 15) 71 | -11/Scrapyard | Entered Materials 131 | -10/Materials | Discovered new exit (range 5) 148 | -10/Materials | Discovered new exit (range 15) 307 | -10/Materials | Build established: Mutant 885 | -10/Materials | Discovered new exit (range 11) 1328 | -10/Materials | Discovered new exit (range 8) 2361 | -10/Materials | Discovered new exit (range 15) 2630 | -10/Materials | Discovered new exit (range 11) 2646 | -10/Materials | Entered Subcaves 2899 | -10/Subcaves | Visited 4L-MR0's lab 2915 | -10/Subcaves | Found Power Bank 3014 | -10/Subcaves | Shifting Twisted Machinery released Battle Cannon 3014 | -10/Subcaves | Shifting Twisted Machinery released Sub. Shrapnel Launcher 3191 | -10/Subcaves | Learned 4 Materials zone layouts 3428 | -10/Subcaves | Core integrity fell below 50% 3564 | -10/Subcaves | Learned location of Zion (-7) 3577 | -10/Subcaves | Lost 3 parts (1p1u1w) 3898 | -10/Subcaves | Core integrity fell below 20% 3905 | -10/Subcaves | Destroyed by 2K-TKG(R) with Subdweller Beam Cannon Last Messages --------------- 03600_ Found Sub. Optics. 03600_ Found 35 Matter. 03604_ Searching scrap... 03604_ Found Flamer. 03604_ Found Scrap Shield. 03604_ Found 29 Matter. 03614_ Searching scrap... 03614_ Found Spk. Treads. 03614_ Found Barrage Gun. 03614_ Found 25 Matter. 03622_ Acquired 20 matter. 03626_ Acquired Barrage Gun. 03627_ Acquired 5 matter. 03632_ Searching scrap... 03632_ Found Barrage Gun. 03632_ Found Sub. Beam Cannon. 03632_ Found 24 Matter. 03633_ Acquired 5 matter. 03635_ Dropped Lgt. Cannon. 03636_ Dropped Grenade Launcher. Map ----- +----------------------------------------------------+ | ?????????????????????????????????????????????????? | | ?????????????????????????????????????????????????? | | ?????????????????????????????????????????????????? | | ?????????????????????????????????????????????? | | ?????????????????????????????????????????????? | | ??????????????????????????????????????????????# | | ??????????????????????????????????????????????# | | ?????????????????????????????????????????????? | | ?????????????????????????????????????????????? | | ??????????????????????????????????????????????? | | ??????????????????????????????????????????????? | | ?????????????????????????????????????????????????? | | ?????????????????????????????????????????????????? | | ?????????????????????????????????????????????????? | | ???????????????????"?????????????????????????????? | | ??????????????????? ????????????????????????????? | | ????????????????????"????????????????????????????? | | ????????????????????? ???????????????????????????? | | ?????????????????????? ??????????????????????????? | | ?????????????????????? ######????????????????????? | | ??????????????????????? # # #????????????????????? | | ???????????????????????? ##??????????????###### | | ????????????????????????# #??????????????# | | ????????????????????????# #???????????????### | | ????????????????????????##RR#???????????????#"""X" | | ???????????????? #?????#@ ###?????????????#""""" | | ???????????????? ???## #?????????????###### | | ?????????????? ???# ##?????????????????? | | ???????????????? #??# ##??????????????### | | ???????????????????# ### ######?????????# | | ????????????????????# ## #?????????## | | ????????????????????# #?????????# | | ????????????????????## #???????###" | | ????????????????????## #?????### " | | ???????????????????## ##### ######## | | ???????????????????# # ####### ## #### | | ???????????????????# ### ## | | ???????????????????# ##" | | ???????????????????# ### # #### | | ???????????????????# #?## ## ### ###### | | ???????????????????###### ###### ##??## | | ?????????????????????## #??## "##### | | ????????????????????## ##??#" " # ## | | ???????????????????## &###### ] "" ## ### | | ???????????????????# #### ## " "" "#### ### | | ???????????????????#"" ## """" ""# # ### | | ???????????????????##" ## """""" """ [ ! # | | ???????????????????# "" #""#""" """ !! | | ???????????????????#" "#"""######] "#[!# [ | | ???????????????????##" "" "###?## ## ## ## | +----------------------------------------------------+ Best States ------------- Heat Dissipation 25 Energy Generation 15 Energy Capacity 250 Matter Stores 300 Matter Capacity 300 Sight Range 16 Terrain Scan Density 10 Armor Coverage 225 Evasion (%) 40 Recoil Reduction 2 Item Schematics ----------------- None Robot Schematics ------------------ None Fabricated ------------ Nothing Alien Tech Used ----------------- None Achievements -------------- None Challenges ------------ None Game ------ Seed WeightAssemblyMonowheel Manual? 0 Play Time 00:19:10 Cumulative 86.1 hours Start 2024.05.27 @ 09:27:27 End 2024.05.27 @ 09:46:49 Sessions 1 Manual Loads 0 Difficulty Rogue Special Mode None Game No. 139 Rogue 139 Adventurer 0 Explorer 0 Win Type - Total 1 Types 1/0/0/0/0/0/0/0/0 Lore% 40 Gallery% 44 Achievement% 32 Wizard Run 0 Options --------- Layout 1 ASCII 0 Keyboard 1 Movement Numpad Keybinds 0 Fullscreen 1 Font 24/Smallcaps Map View 50x35 Zoom Use 0% Tactical HUD 1 Map Filters NONE Filters NONE Steam 1 RUN: 36a881de-41a8-482d-8901-612fad1dd893